fUSD/lending_fUSD_20250414
["ID","MTS","AMOUNT","RATE_DAILY","PERIOD"]
[358000089,1744648245645,-500.0,0.00017891,2]
[358000090,1744648245655,-500.0,0.00017891,2]
[358000091,1744648245665,-500.0,0.00017891,2]
[358000092,1744648245675,-500.0,0.00017891,2]
[358000093,1744648245684,-505.81,0.00017891,2]
[358000094,1744648245694,-500.0,0.00017891,2]
[358000095,1744648245704,-500.0,0.00017891,2]
[358000096,1744648245713,-500.0,0.00017891,2]
[358000097,1744648245723,-500.0,0.00017891,2]
[358000098,1744648245733,-500.0,0.00017891,2]
[358000099,1744648245743,-500.0,0.00017891,2]
[358000100,1744648245752,-500.0,0.00017891,2]
[358000101,1744648245762,-500.0,0.00017891,2]
[358000102,1744648245772,-500.0,0.00017891,2]
[358000103,1744648245782,-500.0,0.00017891,2]
[358000105,1744648245792,-500.0,0.00017891,2]
[358000107,1744648245802,-500.0,0.00017891,2]
[358000109,1744648245812,-500.0,0.00017891,2]
[358000111,1744648245822,-500.0,0.00017891,2]
[358000113,1744648245832,-500.0,0.00017891,2]
[358000117,1744648245844,-500.0,0.00017891,2]
[358000120,1744648245854,-500.0,0.00017891,2]
[358000121,1744648245864,-500.0,0.00017891,2]
[358000122,1744648245874,-500.0,0.00017891,2]
[358000123,1744648245883,-500.0,0.00017891,2]
[358000124,1744648245893,-500.0,0.00017891,2]
[358000125,1744648245903,-500.0,0.00017891,2]
[358000126,1744648245913,-184.89,0.00017891,2]
[358000127,1744648245924,-500.0,0.00017891,2]
[358000128,1744648245934,-515.38,0.00017891,2]
[358000129,1744648245944,-500.0,0.00017891,2]
[358000130,1744648245953,-515.38,0.00017891,2]
[358000131,1744648245963,-489.2,0.00017891,2]
[358000132,1744648245973,-515.38,0.00017891,2]
[358000133,1744648245983,-515.38,0.00017891,2]
[358000134,1744648245993,-500.0,0.00017891,2]
[358000135,1744648246003,-500.0,0.00017891,2]
[358000136,1744648246013,-500.0,0.00017891,2]
[358000137,1744648246022,-500.0,0.00017891,2]
[358000138,1744648246032,-500.0,0.00017891,2]
[358000139,1744648246041,-666.68,0.00017891,2]
[358000140,1744648246051,-666.68,0.00017891,2]
[358000141,1744648246061,-666.68,0.00017891,2]
[358000142,1744648246071,-666.68,0.00017891,2]
[358000143,1744648246080,-666.68,0.00017891,2]
[358000144,1744648246090,-500.0,0.00017891,2]
[358000145,1744648246102,-500.0,0.00017891,2]
[358000146,1744648246112,-500.0,0.00017891,2]
[358000147,1744648246122,-500.0,0.00017891,2]
[358000148,1744648246132,-500.0,0.00017891,2]
[358000149,1744648246141,-500.0,0.00017891,2]
[358000150,1744648246151,-500.0,0.00017891,2]
[358000151,1744648246161,-500.0,0.00017891,2]
[358000152,1744648246171,-500.0,0.00017891,2]
[358000153,1744648246181,-500.0,0.00017891,2]
[358000154,1744648246191,-500.0,0.00017891,2]
[358000155,1744648246201,-500.0,0.00017891,2]
[358000156,1744648246210,-500.0,0.00017891,2]
[358000157,1744648246221,-500.0,0.00017891,2]
[358000158,1744648246231,-500.0,0.00017891,2]
[358000159,1744648246241,-500.0,0.00017891,2]
[358000160,1744648246250,-500.0,0.00017891,2]
[358000161,1744648246260,-500.0,0.00017891,2]
[358000162,1744648246269,-500.0,0.00017891,2]
[358000163,1744648246279,-500.0,0.00017891,2]
[358000164,1744648246292,-500.0,0.00017891,2]
[358000165,1744648246301,-292.36980966,0.00017891,2]
[358000166,1744648246311,-500.0,0.00017891,2]
[358000167,1744648246322,-500.0,0.00017891,2]
[358000168,1744648246332,-500.0,0.00017891,2]
[358000169,1744648246344,-500.0,0.00017891,2]
[358000170,1744648246355,-500.0,0.00017891,2]
[358000171,1744648246366,-500.0,0.00017891,2]
[358000172,1744648246377,-500.0,0.00017891,2]
[358000173,1744648246386,-500.0,0.00017891,2]
[358000174,1744648246396,-500.0,0.00017891,2]
[358000175,1744648246406,-500.0,0.00017891,2]
[358000176,1744648246416,-500.0,0.00017891,2]
[358000177,1744648246425,-500.0,0.00017891,2]
[358000178,1744648246435,-500.0,0.00017891,2]
[358000179,1744648246445,-500.0,0.00017891,2]
[358000180,1744648246455,-500.0,0.00017891,2]
[358000181,1744648246465,-404.32,0.00017891,2]
[358000182,1744648246475,-500.0,0.00017891,2]
[358000183,1744648246485,-500.0,0.00017891,2]
[358000184,1744648246494,-500.0,0.00017891,2]
[358000185,1744648246504,-500.0,0.00017891,2]
[358000186,1744648246514,-500.0,0.00017891,2]
[358000187,1744648246523,-500.0,0.00017891,2]
[358000188,1744648246533,-500.0,0.00017891,2]
[358000189,1744648246543,-500.0,0.00017891,2]
[358000190,1744648246552,-452.2819061,0.00017891,2]
[358000191,1744648246562,-204.74244967,0.00017891,2]
[358000192,1744648246572,-500.0,0.00017891,2]
[358000193,1744648246582,-500.0,0.00017891,2]
[358000194,1744648246592,-500.0,0.00017891,2]
[358000195,1744648246603,-589.29710333,0.00017891,2]
[358000196,1744648246612,-500.0,0.00017891,2]
[358000197,1744648246622,-500.0,0.00017891,2]
[358000198,1744648246631,-500.0,0.00017891,2]
[358000199,1744648246641,-500.0,0.00017891,2]
[358000200,1744648246651,-500.0,0.00017891,2]
[358000202,1744648246661,-500.0,0.00017891,2]
[358000204,1744648246671,-500.0,0.00017891,2]
[358000206,1744648246681,-529.93262804,0.00017891,2]
[358000208,1744648246690,-500.0,0.00017891,2]
[358000210,1744648246699,-500.0,0.00017891,2]
[358000211,1744648246709,-500.0,0.00017891,2]
[358000213,1744648246719,-500.0,0.00017891,2]
[358000215,1744648246729,-500.0,0.00017891,2]
[358000217,1744648246739,-500.0,0.00017891,2]
[358000219,1744648246749,-500.0,0.00017891,2]
[358000221,1744648246759,-500.0,0.00017891,2]
[358000223,1744648246769,-500.0,0.00017891,2]
[358000225,1744648246778,-500.0,0.00017891,2]
[358000227,1744648246787,-500.0,0.00017891,2]
[358000229,1744648246797,-500.0,0.00017891,2]
[358000231,1744648246806,-500.0,0.00017891,2]
[358000233,1744648246815,-500.0,0.00017891,2]
[358000235,1744648246824,-500.0,0.00017891,2]
[358000237,1744648246834,-500.0,0.00017891,2]
[358000239,1744648246845,-500.0,0.00017891,2]
[358000240,1744648246855,-500.0,0.00017891,2]
[358000242,1744648246864,-500.0,0.00017891,2]
[358000244,1744648246874,-500.0,0.00017891,2]
[358000246,1744648246883,-500.0,0.00017891,2]
[358000248,1744648246893,-476.95212457,0.00017891,2]
[358000250,1744648246903,-500.0,0.00017891,2]
[358000252,1744648246911,-500.0,0.00017891,2]
[358000254,1744648246921,-500.0,0.00017891,2]
[358000256,1744648246930,-500.0,0.00017891,2]
[358000258,1744648246940,-500.0,0.00017891,2]
[358000261,1744648246950,-500.0,0.00017891,2]
[358000263,1744648246962,-500.0,0.00017891,2]
[358000265,1744648246971,-500.0,0.00017891,2]
[358000267,1744648246980,-500.0,0.00017891,2]
[358000269,1744648246990,-500.0,0.00017891,2]
[358000271,1744648246999,-500.0,0.00017891,2]
[358000272,1744648247009,-500.0,0.00017891,2]
[358000274,1744648247018,-500.0,0.00017891,2]
[358000276,1744648247028,-500.0,0.00017891,2]
[358000277,1744648247037,-500.0,0.00017891,2]
[358000278,1744648247047,-500.0,0.00017891,2]
[358000279,1744648247056,-500.0,0.00017891,2]
[358000281,1744648247066,-500.0,0.00017891,2]
[358000282,1744648247076,-500.0,0.00017891,2]
[358000283,1744648247086,-500.0,0.00017891,2]
[358000284,1744648247097,-512.71783131,0.00017891,2]
[358000285,1744648247106,-500.0,0.00017891,2]
[358000286,1744648247116,-500.0,0.00017891,2]
[358000287,1744648247127,-643.11970682,0.00017891,2]
[358000288,1744648247137,-500.0,0.00017891,2]
[358000289,1744648247147,-500.0,0.00017891,2]
[358000290,1744648247158,-500.0,0.00017891,2]
[358000291,1744648247167,-500.0,0.00017891,2]
[358000292,1744648247177,-500.0,0.00017891,2]
[358000293,1744648247186,-690.06,0.00017891,2]
[358000294,1744648247196,-690.06,0.00017891,2]
[358000295,1744648247204,-690.06,0.00017891,2]
[358000296,1744648247214,-690.06,0.00017891,2]
[358000297,1744648247223,-267.63986945,0.00017891,2]
[358000298,1744648247233,-500.0,0.00017891,2]
[358000299,1744648247243,-500.0,0.00017891,2]
[358000300,1744648247252,-500.0,0.00017891,2]
[358000301,1744648247262,-500.0,0.00017891,2]
[358000302,1744648247272,-500.0,0.00017891,2]
[358000303,1744648247282,-500.0,0.00017891,2]
[358000304,1744648247294,-500.0,0.00017891,2]
[358000305,1744648247308,-500.0,0.00017891,2]
[358000306,1744648247317,-500.0,0.00017891,2]
[358000307,1744648247328,-500.0,0.00017891,2]
[358000308,1744648247338,-500.0,0.00017891,2]
[358000309,1744648247350,-500.0,0.00017891,2]
[358000310,1744648247359,-500.0,0.00017891,2]
[358000311,1744648247369,-500.0,0.00017891,2]
[358000312,1744648247380,-500.0,0.00017891,2]
[358000313,1744648247391,-562.6,0.00017891,2]
[358000314,1744648247403,-340.49153415,0.00017891,2]
[358000315,1744648247412,-500.0,0.00017891,2]
[358000316,1744648247424,-151.30727381,0.00017891,2]
[358000317,1744648247436,-500.0,0.00017891,2]
[358000318,1744648247446,-500.0,0.00017891,2]
[358000319,1744648247455,-500.0,0.00017891,2]
[358000320,1744648247465,-500.0,0.00017891,2]
[358000321,1744648247475,-500.0,0.00017891,2]
[358000322,1744648247485,-500.0,0.00017891,2]
[358000323,1744648247495,-500.0,0.00017891,2]
[358000324,1744648247504,-500.0,0.00017891,2]
[358000325,1744648247514,-500.0,0.00017891,2]
[358000326,1744648247524,-500.0,0.00017891,2]
[358000327,1744648247533,-500.0,0.00017891,2]
[358000328,1744648247543,-500.0,0.00017891,2]
[358000329,1744648247553,-500.0,0.00017891,2]
[358000330,1744648247562,-500.0,0.00017891,2]
[358000331,1744648247572,-506.39,0.00017891,2]
[358000332,1744648247582,-3260.1,0.00017891,2]
[358000333,1744648247593,-3260.1,0.00017891,2]
[358000334,1744648247604,-500.0,0.00017891,2]
[358000335,1744648247614,-507.28,0.00017891,2]
[358000336,1744648247623,-507.28,0.00017891,2]
[358000337,1744648247633,-500.0,0.00017891,2]
[358000338,1744648247643,-507.28,0.00017891,2]
[358000339,1744648247653,-500.0,0.00017891,2]
[358000340,1744648247662,-507.28,0.00017891,2]
[358000341,1744648247672,-500.0,0.00017891,2]
[358000342,1744648247680,-500.0,0.00017891,2]
[358000343,1744648247691,-500.0,0.00017891,2]
[358000344,1744648247701,-500.0,0.00017891,2]
[358000345,1744648247711,-4864.7,0.00017891,2]
[358000346,1744648247721,-4864.7,0.00017891,2]
[358000347,1744648247731,-500.0,0.00017891,2]
[358000348,1744648247741,-500.0,0.00017891,2]
[358000349,1744648247751,-390.09816621,0.00017891,2]
[358000350,1744648247760,-500.0,0.00017891,2]
[358000351,1744648247770,-808.46,0.00017891,2]
[358000352,1744648247780,-808.46,0.00017891,2]
[358000353,1744648247790,-808.46,0.00017891,2]
[358000354,1744648247800,-808.46,0.00017891,2]
[358000355,1744648247809,-808.46,0.00017891,2]
[358000356,1744648247819,-500.0,0.00017891,2]
[358000357,1744648247829,-500.0,0.00017891,2]
[358000358,1744648247839,-485.75605334,0.00017891,2]
[358000359,1744648247852,-500.0,0.00017891,2]
[358000360,1744648247862,-500.0,0.00017891,2]
[358000361,1744648247871,-988.57453824,0.00017891,2]
[358000362,1744648247881,-500.0,0.00017891,2]
[358000363,1744648247892,-500.0,0.00017891,2]
[358000364,1744648247901,-500.0,0.00017891,2]
[358000365,1744648247911,-500.0,0.00017891,2]
[358000366,1744648247921,-500.0,0.00017891,2]
[358000367,1744648247931,-500.0,0.00017891,2]
[358000368,1744648247941,-500.0,0.00017891,2]
[358000369,1744648247951,-500.0,0.00017891,2]
[358000370,1744648247960,-500.0,0.00017891,2]
[358000371,1744648247970,-500.0,0.00017891,2]
[358000372,1744648247980,-500.0,0.00017891,2]
[358000373,1744648247991,-416.03128251,0.00017891,2]
[358000374,1744648248000,-500.0,0.00017891,2]
[358000375,1744648248010,-500.0,0.00017891,2]
[358000376,1744648248021,-500.0,0.00017891,2]
[358000377,1744648248030,-500.0,0.00017891,2]
[358000378,1744648248040,-500.0,0.00017891,2]
[358000379,1744648248050,-500.0,0.00017891,2]
[358000380,1744648248060,-500.0,0.00017891,2]
[358000381,1744648248070,-500.0,0.00017891,2]
[358000382,1744648248079,-500.0,0.00017891,2]
[358000383,1744648248274,-500.0,0.00017891,2]
[358000384,1744648248286,-500.0,0.00017891,2]
[358000385,1744648248297,-500.0,0.00017891,2]
[358000386,1744648248309,-500.0,0.00017891,2]
[358000387,1744648248319,-500.0,0.00017891,2]
[358000388,1744648248332,-500.0,0.00017891,2]
[358000389,1744648248342,-500.0,0.00017891,2]
[358000390,1744648248354,-500.0,0.00017891,2]
[358000391,1744648248364,-500.0,0.00017891,2]
[358000392,1744648248376,-500.0,0.00017891,2]
[358000393,1744648248386,-500.0,0.00017891,2]
[358000394,1744648248397,-500.0,0.00017891,2]
[358000395,1744648248407,-500.0,0.00017891,2]
[358000396,1744648248417,-500.0,0.00017891,2]
[358000397,1744648248427,-500.0,0.00017891,2]
[358000398,1744648248437,-500.0,0.00017891,2]
[358000399,1744648248447,-500.0,0.00017891,2]
[358000400,1744648248458,-500.0,0.00017891,2]
[358000401,1744648248469,-365.753386,0.00017891,2]
[358000402,1744648248481,-566.54523901,0.00017891,2]
[358000403,1744648248492,-568.28,0.00017891,2]
[358000404,1744648248502,-568.28,0.00017891,2]
[358000405,1744648248512,-568.28,0.00017891,2]
[358000406,1744648248522,-568.28,0.00017891,2]
[358000407,1744648248532,-500.0,0.00017891,2]
[358000408,1744648248541,-500.0,0.00017891,2]
[358000409,1744648248551,-500.0,0.00017891,2]
[358000410,1744648248561,-500.0,0.00017891,2]
[358000411,1744648248571,-500.0,0.00017891,2]
[358000412,1744648248580,-500.0,0.00017891,2]
[358000413,1744648248591,-500.0,0.00017891,2]
[358000414,1744648248603,-500.0,0.00017891,2]
[358000415,1744648248613,-598.89,0.00017891,2]
[358000416,1744648248623,-598.89,0.00017891,2]
[358000417,1744648248634,-598.89,0.00017891,2]
[358000418,1744648248644,-598.89,0.00017891,2]
[358000419,1744648248655,-598.89,0.00017891,2]
[358000420,1744648248669,-500.0,0.00017891,2]
[358000421,1744648248679,-500.0,0.00017891,2]
[358000422,1744648248690,-500.0,0.00017891,2]
[358000423,1744648248700,-500.0,0.00017891,2]
[358000424,1744648248710,-4081.72,0.00017891,2]
[358000425,1744648248720,-4081.72,0.00017891,2]
[358000426,1744648248730,-4081.72,0.00017891,2]
[358000427,1744648248740,-636.89,0.00017891,2]
[358000428,1744648248750,-4081.72,0.00017891,2]
[358000429,1744648248759,-636.89,0.00017891,2]
[358000430,1744648248768,-4081.72,0.00017891,2]
[358000431,1744648248777,-636.89,0.00017891,2]
[358000432,1744648248787,-636.89,0.00017891,2]
[358000433,1744648248798,-636.89,0.00017891,2]
[358000434,1744648248808,-500.0,0.00017891,2]
[358000435,1744648248818,-500.0,0.00017891,2]
[358000436,1744648248828,-500.0,0.00017891,2]
[358000437,1744648248838,-500.0,0.00017891,2]
[358000438,1744648248849,-589.85,0.00017891,2]
[358000439,1744648248859,-589.85,0.00017891,2]
[358000440,1744648248868,-589.85,0.00017891,2]
[358000441,1744648248878,-589.85,0.00017891,2]
[358000442,1744648248889,-589.85,0.00017891,2]
[358000443,1744648248899,-173160.18,0.00017891,2]
[358000444,1744648248909,-173160.18,0.00017891,2]
[358000445,1744648248919,-155820.1474172,0.00017891,2]
[358000446,1744648249210,-1520.61910004,0.00017891,2]
[358000447,1744648249244,-15819.41348276,0.00017891,2]
[358000448,1744648249254,-49120.0130126,0.00017891,2]
[358000449,1744648249270,-8179.285775,0.00017891,2]
[358000450,1744648250731,-262.98061614,0.0001789,2]
[358000451,1744648251064,-500.0,0.00017889,2]
[358000452,1744648251074,-500.0,0.00017889,2]
[358000453,1744648251084,-500.0,0.00017889,2]
[358000454,1744648251093,-169.57234479,0.0001789,2]
[358000455,1744648251108,-67.44703907,0.0001789,2]
[358000456,1744648251118,-615.41323368,0.0001789,2]
[358000457,1744648251128,-500.0,0.0001789,2]
[358000458,1744648251137,-500.0,0.0001789,2]
[358000459,1744648251147,-500.0,0.0001789,2]
[358000460,1744648251156,-1762.38972725,0.00017891,2]
[358000461,1744648251167,-10554.2203,0.00017891,2]
[358000462,1744648251179,-694.60011439,0.00017891,2]
[358000463,1744648251194,-903.18095526,0.00017891,2]
[358000464,1744648251206,-1189.33499715,0.00017891,2]
[358000465,1744648251217,-1299.23596772,0.00017891,2]
[358000466,1744648251229,-851.20836019,0.00017891,2]
[358000467,1744648251262,-500.0,0.0001789,2]
[358000468,1744648251272,-500.0,0.0001789,2]
[358000469,1744648251283,-1554.04466402,0.00017891,2]
[358000470,1744648251296,-924.54418127,0.00017891,2]
[358000471,1744648296211,158.75,0.000169,2]
[358000472,1744648321538,-327.04328873,0.0001779,2]
[358000473,1744648321568,-26.27781005,0.00017798,2]
[358000474,1744648352341,1801.03,0.000169,2]
[358000475,1744648352363,10000.0,0.000169,2]
[358000476,1744648352384,10000.0,0.000169,2]
[358000477,1744648352406,2098.97,0.000169,2]
[358000480,1744648552434,975.23,0.00014923,2]
[358000481,1744648552639,975.23,0.00017187,2]
[358000482,1744648714853,5000.0,0.0001683,2]
[358000483,1744648822997,223.23,0.00016826,2]
[358000484,1744648901252,727.34,0.00016827,2]
[358000485,1744648901274,1272.66,0.00016827,2]
[358000486,1744648918105,200.0,0.00016817,2]
[358000487,1744649228140,-1000.0,0.000176,2]
[358000488,1744649228163,-192.25227417,0.00017621,2]
[358000489,1744649235074,1000.0,0.00016835,2]
[358000490,1744649258580,250.0,0.0001699,2]
[358000491,1744649305524,155.11189853,0.0001699,2]
[358000494,1744649345450,250.0,0.00016839,2]
[358000505,1744649432108,-150.0,0.00017625,2]
[358000506,1744649432118,-150.0,0.00017625,2]
[358000507,1744649432128,-150.0,0.0001763,2]
[358000508,1744649432137,-150.0,0.00017658,2]
[358000509,1744649432147,-150.0,0.00017671,2]
[358000510,1744649432156,-150.0,0.00017674,2]
[358000511,1744649432166,-150.0,0.00017674,2]
[358000512,1744649432178,-150.0,0.00017676,2]
[358000513,1744649432187,-150.0,0.00017681,2]
[358000514,1744649432196,-150.0,0.00017711,2]
[358000515,1744649432205,-150.0,0.00017728,2]
[358000516,1744649432215,-150.0,0.00017729,2]
[358000517,1744649432225,-150.0,0.00017764,2]
[358000518,1744649432233,-150.0,0.00017778,2]
[358000519,1744649432243,-207.4,0.00017779,2]
[358000520,1744649432251,-156.33923442,0.00017789,2]
[358000521,1744649432265,-348.28958251,0.00017789,2]
[358000522,1744649432275,-4065.74615704,0.0001779,2]
[358000523,1744649432287,-429.25724296,0.0001779,2]
[358000524,1744649432296,-123.72218995,0.00017798,2]
[358000525,1744649432306,-348.28958251,0.000178,2]
[358000526,1744649432315,-150.0,0.00017807,2]
[358000527,1744649432324,-150.0,0.0001781,2]
[358000528,1744649432334,-348.28958251,0.00017811,2]
[358000529,1744649432344,-150.0,0.0001782,2]
[358000530,1744649432353,-348.28958251,0.00017822,2]
[358000531,1744649432363,-348.28958251,0.00017833,2]
[358000532,1744649432372,-31.20840624,0.00017836,2]
[358000533,1744649432405,-468.79159376,0.00017836,2]
[358000534,1744649432415,-150.0,0.00017836,2]
[358000535,1744649432425,-348.28958251,0.00017845,2]
[358000536,1744649432435,-150.0,0.00017853,2]
[358000537,1744649432444,-300.0,0.00017853,2]
[358000538,1744649432454,-348.28958251,0.00017856,2]
[358000539,1744649432465,-150.0,0.0001786,2]
[358000540,1744649432475,-348.28958251,0.00017867,2]
[358000541,1744649432485,-504.53095867,0.00017873,2]
[358000542,1744649432494,-313.29624153,0.00017873,2]
[358000543,1744649432506,-186.70375847,0.00017873,2]
[358000544,1744649432515,-160.37730809,0.00017873,2]
[358000545,1744649432525,-159.89840796,0.00017873,2]
[358000547,1744649432534,-46.57052548,0.00017873,2]
[358000549,1744649432559,-273.64459035,0.00017873,2]
[358000550,1744649432569,-181.90335424,0.00017873,2]
[358000551,1744649432578,-500.0,0.00017873,2]
[358000552,1744649432587,-500.0,0.00017873,2]
[358000553,1744649432596,-36.45205542,0.00017873,2]
[358000554,1744649432625,-463.54794458,0.00017873,2]
[358000555,1744649432635,-158.17625108,0.00017873,2]
[358000556,1744649432645,-355.62633737,0.00017873,2]
[358000557,1744649432658,-500.0,0.00017873,2]
[358000558,1744649432667,-500.0,0.00017873,2]
[358000559,1744649432676,-151.43480382,0.00017873,2]
[358000560,1744649432686,-155.6759798,0.00017873,2]
[358000561,1744649432698,-3556.6865949,0.00017877,2]
[358000562,1744649432707,-348.28958251,0.00017878,2]
[358000563,1744649432717,-2268.66819975,0.00017879,2]
[358000662,1744649438414,-414.12621455,0.00017879,2]
[358000710,1744649438999,-632.47247469,0.00017879,2]
[358000728,1744649440392,-4484.5228751,0.00017879,2]
[358000729,1744649440413,-390.4867424,0.00017879,2]
[358000730,1744649440425,-15359.3198734,0.00017879,2]
[358000731,1744649440437,-720.47905909,0.00017879,2]
[358000732,1744649440448,-419.77238971,0.00017879,2]
[358000733,1744649440459,-1656.58520388,0.00017879,2]
[358000734,1744649440471,-3731.23627561,0.00017879,2]
[358000735,1744649440637,-323.62139995,0.00017879,2]
[358000736,1744649440657,-947.66428876,0.00017879,2]
[358000750,1744649444421,-5185.26964366,0.00017879,2]
[358000751,1744649444433,-24905.48936121,0.00017879,2]
[358000754,1744649446082,-1891.16410314,0.00017879,2]
[358000755,1744649446092,-169.81170673,0.00017879,2]
[358000756,1744649446101,-151.22,0.00017879,2]
[358000757,1744649446111,-207.87239511,0.0001788,2]
[358000758,1744649446120,-150.0,0.00017881,2]
[358000759,1744649446129,-500.0,0.00017888,2]
[358000760,1744649446139,-500.0,0.00017888,2]
[358000761,1744649446149,-568.42,0.00017888,2]
[358000762,1744649446158,-500.0,0.00017888,2]
[358000763,1744649446167,-500.0,0.00017888,2]
[358000764,1744649446176,-500.0,0.00017888,2]
[358000765,1744649446186,-500.0,0.00017888,2]
[358000766,1744649446196,-500.0,0.00017888,2]
[358000767,1744649446205,-500.0,0.00017888,2]
[358000768,1744649446215,-500.0,0.00017888,2]
[358000769,1744649446224,-500.0,0.00017888,2]
[358000770,1744649446233,-500.0,0.00017888,2]
[358000771,1744649446243,-500.0,0.00017888,2]
[358000772,1744649446252,-500.0,0.00017888,2]
[358000773,1744649446261,-500.0,0.00017888,2]
[358000774,1744649446271,-608.68,0.00017888,2]
[358000775,1744649446280,-593.84455762,0.00017888,2]
[358000776,1744649446290,-965.71,0.00017888,2]
[358000777,1744649446299,-965.71,0.00017888,2]
[358000778,1744649446308,-500.0,0.00017888,2]
[358000779,1744649446317,-500.0,0.00017888,2]
[358000780,1744649446327,-234.83,0.00017888,2]
[358000781,1744649446337,-766.85,0.00017888,2]
[358000782,1744649446346,-766.85,0.00017888,2]
[358000783,1744649446355,-500.0,0.00017888,2]
[358000784,1744649446364,-256.18,0.00017888,2]
[358000785,1744649446373,-500.0,0.00017888,2]
[358000786,1744649446383,-500.0,0.00017888,2]
[358000787,1744649446392,-500.0,0.00017888,2]
[358000788,1744649446402,-500.0,0.00017888,2]
[358000789,1744649446411,-705.99,0.00017888,2]
[358000790,1744649446421,-705.99,0.00017888,2]
[358000791,1744649446430,-500.0,0.00017888,2]
[358000792,1744649446439,-500.0,0.00017888,2]
[358000793,1744649446448,-636.68,0.00017888,2]
[358000794,1744649446457,-620.25,0.00017888,2]
[358000795,1744649446467,-620.25,0.00017888,2]
[358000796,1744649446476,-500.0,0.00017888,2]
[358000797,1744649446486,-500.0,0.00017888,2]
[358000798,1744649446495,-500.0,0.00017888,2]
[358000799,1744649446504,-500.0,0.00017888,2]
[358000800,1744649446514,-500.0,0.00017888,2]
[358000801,1744649446523,-500.0,0.00017888,2]
[358000802,1744649446533,-500.0,0.00017888,2]
[358000803,1744649446542,-500.0,0.00017888,2]
[358000804,1744649446552,-500.0,0.00017888,2]
[358000806,1744649446561,-500.0,0.00017888,2]
[358000808,1744649446571,-500.0,0.00017888,2]
[358000809,1744649446580,-500.0,0.00017888,2]
[358000810,1744649446589,-588.12,0.00017888,2]
[358000811,1744649446599,-588.12,0.00017888,2]
[358000812,1744649446608,-709.76,0.00017888,2]
[358000813,1744649446618,-709.76,0.00017888,2]
[358000814,1744649446628,-507.76896955,0.00017889,2]
[358000815,1744649446638,-534.06745852,0.00017889,2]
[358000816,1744649446674,-281.45548152,0.00017889,2]
[358000817,1744649446686,-403.11705996,0.00017889,2]
[358000818,1744649446696,-1218.64,0.00017889,2]
[358000819,1744649446705,-669.69,0.00017889,2]
[358000820,1744649446715,-669.69,0.00017889,2]
[358000821,1744649446725,-342.64280142,0.00017889,2]
[358000822,1744649446737,-157.35719858,0.00017889,2]
[358000823,1744649446747,-500.0,0.00017889,2]
[358000824,1744649446934,-372.99202576,0.00017889,2]
[358000825,1744649446964,-127.00797424,0.00017889,2]
[358000826,1744649446974,-500.0,0.00017889,2]
[358000827,1744649446984,-500.0,0.00017889,2]
[358000828,1744649446993,-536.01507649,0.00017889,2]
[358000829,1744649447002,-500.0,0.00017889,2]
[358000830,1744649447012,-500.0,0.00017889,2]
[358000831,1744649447021,-287.83368992,0.00017889,2]